[Event "Summer Prague Open A 2020"]
[Site "Prague"]
[Date "2020.08.08"]
[Round "1.8"]
[White "Malassagne, Isabelle"]
[Black "Neuman, Petr"]
[Result "1/2-1/2"]
[ECO "C41"]
[WhiteElo "2017"]
[BlackElo "2376"]
[Annotator "ChessBase"]
[PlyCount "171"]
[EventDate "2020.08.08"]
[EventCountry "CZE"]
[SourceTitle "playchess.com"]
[Source "ChessBase"]
[SourceQuality "1"]
[TimeControl "40/5400+30:1800+30"]

1. d4 {[%emt 0:00:00]} d6 {[%emt 0:00:00]} 2. e4 {[%emt 0:00:00]} Nf6 {[%emt 0:00:00]} 3. Nc3 {[%emt 0:00:03]} e5 {[%emt 0:00:00]} 4. Nf3 {[%emt 0:02:16]} Nbd7 {[%emt 0:00:00]} 5. Bc4 {[%emt 0:01:10]} Be7 {[%emt 0:00:00]} 6. O-O {[%emt 0:00:14]} O-O {[%emt 0:00:03]} 7. Re1 {[%emt 0:01:17]} c6 {[%emt 0:00:06]} 8. a4 {[%emt 0:00:17]} b6 {[%emt 0:00:24]} 9. dxe5 {[%emt 0:06:02]} dxe5 {[%emt 0:02:18]} 10. h3 {[%emt 0:02:25]} Qc7 {[%emt 0:02:09]} 11. Nd2 {[%emt 0:11:01]} a6 {[%emt 0:02:45]} 12. Qf3 {[%emt 0:02:26]} Rb8 {[%emt 0:00:28]} 13. Nb3 {[%emt 0:06:20]} b5 {[%emt 0:01:19]} 14. Bf1 {[%emt 0:00:09]} Nc5 {[%emt 0:02:14]} 15. Nxc5 {[%emt 0:05:57]} Bxc5 {[%emt 0:00:44]} 16. Nd1 {[%emt 0:08:23]} Be6 {[%emt 0:01:29]} 17. Ne3 {[%emt 0:02:34]} Rfe8 {[%emt 0:04:28]} 18. Nf5 {[%emt 0:00:48]} Bxf5 {[%emt 0:02:29]} 19. Qxf5 {[%emt 0:00:39]} Nd7 {[%emt 0:01:07]} 20. axb5 {[%emt 0:06:53]} axb5 {[%emt 0:06:27]} 21. Be3 {[%emt 0:00:05]} Bxe3 {[%emt 0:02:42]} 22. Rxe3 {[%emt 0:00:17]} Nc5 {[%emt 0:00:05]} 23. Rea3 {[%emt 0:04:14]} Rb7 {[%emt 0:06:20]} 24. h4 {[%emt 0:04:42]} Qe7 {[%emt 0:10:46]} 25. h5 {[%emt 0:08:22]} Rd7 {[%emt 0:04:14]} 26. b4 {[%emt 0:10:12]} g6 {[%emt 0:01:58]} 27. Qg4 {[%emt 0:02:01]} Ne6 {[%emt 0:02:07]} 28. c3 {[%emt 0:01:22]} Rd2 {[%emt 0:04:27]} 29. Ra7 {[%emt 0:02:42]} Qf6 {[%emt 0:02:52]} 30. Qg3 {[%emt 0:00:45]} Red8 {[%emt 0:04:10]} 31. Ra8 {[%emt 0:00:29]} Nf4 {[%emt 0:03:14]} 32. Qe3 {[%emt 0:01:56]} Kg7 {[%emt 0:01:27]} 33. Rxd8 {[%emt 0:04:31]} Qxd8 {[%emt 0:02:15]} 34. h6+ {[%emt 0:02:13]} Kxh6 {[%emt 0:01:26]} 35. Qc5 {[%emt 0:03:30]} Rd1 {[%emt 0:02:34]} 36. Rxd1 {[%emt 0:00:01]} Qxd1 {[%emt 0:00:08]} 37. g3 {[%emt 0:01:34]} Nh3+ {[%emt 0:02:49]} 38. Kg2 {[%emt 0:00:01]} Ng5 {[%emt 0:00:05]} 39. Qxe5 {[%emt 0:01:00]} Qf3+ {[%emt 0:00:22]} 40. Kg1 {[%emt 0:00:16]} Qxe4 {[%emt 0:00:46]} 41. Qxe4 {[%emt 0:06:29]} Nxe4 {[%emt 0:00:07]} 42. c4 {[%emt 0:01:22]} Nc3 {[%emt 0:01:43]} 43. f4 {[%emt 0:04:20]} f5 {[%emt 0:06:32]} 44. cxb5 {[%emt 0:02:47]} cxb5 {[%emt 0:00:14]} 45. Kf2 {[%emt 0:00:30]} Na2 {[%emt 0:09:54]} 46. Bxb5 {[%emt 0:00:02]} Nxb4 {[%emt 0:00:05]} 47. Bc4 {[%emt 0:04:06]} Kg7 {[%emt 0:00:05]} 48. Ke3 {[%emt 0:00:15]} Nc6 {[%emt 0:00:10]} 49. Bd5 {[%emt 0:00:38]} Ne7 {[%emt 0:00:04]} 50. Bb7 {[%emt 0:03:00]} Ng8 {[%emt 0:00:05]} 51. Kf3 {[%emt 0:00:27]} Nf6 {[%emt 0:00:04]} 52. Bc6 {[%emt 0:00:34]} Kf7 {[%emt 0:00:06]} 53. Ba4 {[%emt 0:00:49]} Ke6 {[%emt 0:00:05]} 54. Bb3+ {[%emt 0:00:05]} Kd6 {[%emt 0:00:04]} 55. Bc4 {[%emt 0:00:22]} Kc5 {[%emt 0:00:05]} 56. Bf1 {[%emt 0:00:25]} Kd4 {[%emt 0:00:05]} 57. Ba6 {[%emt 0:00:16]} Kc5 {[%emt 0:05:40]} 58. Bf1 {[%emt 0:00:28]} Ne8 {[%emt 0:00:21]} 59. Be2 {[%emt 0:00:11]} Nd6 {[%emt 0:00:07]} 60. Bf1 {[%emt 0:00:18]} Nc4 {[%emt 0:00:58]} 61. Kf2 {[%emt 0:02:22]} Kd4 {[%emt 0:00:11]} 62. Be2 {[%emt 0:01:34]} h6 {[%emt 0:00:50]} 63. Bf1 {[%emt 0:00:57]} g5 {[%emt 0:04:36]} 64. fxg5 {[%emt 0:00:02]} hxg5 {[%emt 0:00:05]} 65. Be2 {[%emt 0:01:44]} Nd6 {[%emt 0:04:58]} 66. Ba6 {[%emt 0:00:26]} Ke4 {[%emt 0:00:36]} 67. Bf1 {[%emt 0:01:29]} Nf7 {[%emt 0:00:13]} 68. Bg2+ {[%emt 0:00:07]} Kd4 {[%emt 0:00:05]} 69. Bb7 {[%emt 0:00:12]} Nd6 {[%emt 0:01:08]} 70. Ba6 {[%emt 0:00:24]} Ke5 {[%emt 0:00:48]} 71. Be2 {[%emt 0:01:13]} Ne4+ {[%emt 0:00:08]} 72. Kf3 {[%emt 0:00:56]} g4+ {[%emt 0:01:43]} 73. Kg2 {[%emt 0:00:02]} Kd4 {[%emt 0:00:18]} 74. Bb5 {[%emt 0:00:36]} Nc5 {[%emt 0:02:01]} 75. Be8 {[%emt 0:00:07]} Ke3 {[%emt 0:00:15]} 76. Bg6 {[%emt 0:02:39]} Ke4 {[%emt 0:00:04]} 77. Be8 {[%emt 0:00:13]} Ne6 {[%emt 0:00:15]} 78. Bc6+ {[%emt 0:00:11]} Ke3 {[%emt 0:00:05]} 79. Bd7 {[%emt 0:00:16]} Nd4 {[%emt 0:00:04]} 80. Bc8 {[%emt 0:00:20]} Ke2 {[%emt 0:00:08]} 81. Ba6+ {[%emt 0:00:11]} Ke1 {[%emt 0:00:09]} 82. Bd3 {[%emt 0:01:02]} Kd2 {[%emt 0:00:44]} 83. Ba6 {[%emt 0:00:19]} Ke3 {[%emt 0:00:15]} 84. Bc8 {[%emt 0:00:16]} f4 {[%emt 0:05:00]} 85. gxf4 {[%emt 0:00:02]} Kxf4 {[%emt 0:00:06]} 86. Bxg4 1/2-1/2

[Event "Summer Prague Open A 2020"]
[Site "Prague"]
[Date "2020.08.08"]
[Round "1.9"]
[White "Vokac, Marek"]
[Black "Tesar, Jan"]
[Result "1/2-1/2"]
[ECO "A25"]
[WhiteElo "2362"]
[BlackElo "2010"]
[Annotator "ChessBase"]
[PlyCount "76"]
[EventDate "2020.08.08"]
[EventCountry "CZE"]
[SourceTitle "playchess.com"]
[Source "ChessBase"]
[SourceQuality "1"]
[TimeControl "40/5400+30:1800+30"]

1. c4 Nc6 2. Nc3 e5 3. g3 g6 4. Bg2 Bg7 5. Rb1 a5 6. a3 Nf6 7. b4 axb4 8. axb4 Qe7 9. b5 Nd8 10. e3 O-O 11. Nge2 c6 12. O-O d6 13. Bb2 Be6 14. d3 Nh5 15. Ra1 Rxa1 16. Qxa1 f5 17. f4 e4 18. dxe4 Bxc4 19. bxc6 bxc6 20. Re1 fxe4 21. Qa4 Bd3 22. Ba3 Re8 23. Nd4 Qd7 24. Rc1 Nf6 25. h3 c5 26. Qxd7 Nxd7 27. Ndb5 Nf7 28. Nc7 Rb8 29. Nxe4 Rb3 30. Ng5 Nb6 31. Nxf7 Kxf7 32. Bxc5 dxc5 33. Rxc5 Rc3 34. Rxc3 Bxc3 35. Nd5 Nxd5 36. Bxd5+ Kf6 37. Kf2 h5 38. g4 hxg4 1/2-1/2

[Event "Summer Prague Open A 2020"]
[Site "Prague"]
[Date "2020.08.08"]
[Round "1.10"]
[White "Geweniger, Tim"]
[Black "Hrabusa, Matej"]
[Result "0-1"]
[ECO "A80"]
[WhiteElo "2010"]
[BlackElo "2350"]
[Annotator "ChessBase"]
[PlyCount "82"]
[EventDate "2020.08.08"]
[EventCountry "CZE"]
[SourceTitle "playchess.com"]
[Source "ChessBase"]
[SourceQuality "1"]
[TimeControl "40/5400+30:1800+30"]

1. d4 f5 2. Nc3 Nf6 3. Bg5 d5 4. Bxf6 exf6 5. e3 Be6 6. Bd3 Nc6 7. a3 Qd7 8. Qf3 Ne7 9. h4 h5 10. Nge2 O-O-O 11. O-O-O Kb8 12. Kb1 g6 13. Nf4 Bf7 14. Rc1 Nc8 15. g3 c6 16. Qe2 Nd6 17. f3 Re8 18. Qd2 Bh6 19. Rce1 Re7 20. Qf2 Qe8 21. Re2 Rf8 22. Rhe1 Qd7 23. b3 Rfe8 24. Kb2 Bf8 25. Rc1 Nc4+ 26. Bxc4 dxc4 27. e4 Qd6 28. Rd1 cxb3 29. cxb3 Rd7 30. Nb1 g5 31. Ng2 fxe4 32. fxe4 c5 33. d5 Qe5+ 34. Ka2 f5 35. Nd2 Bxd5 36. Rde1 Bg7 37. Nf3 Bxb3+ 38. Kxb3 Qe6+ 39. Kc2 Qa2+ 40. Kc1 Qa1+ 41. Kc2 Qb2# 0-1

[Event "Summer Prague Open A 2020"]
[Site "Prague"]
[Date "2020.08.08"]
[Round "1.11"]
[White "Sorm, Daniel"]
[Black "Babicka, Michal"]
[Result "1-0"]
[ECO "E71"]
[WhiteElo "2342"]
[BlackElo "2038"]
[Annotator "ChessBase"]
[PlyCount "79"]
[EventDate "2020.08.08"]
[EventCountry "CZE"]
[SourceTitle "playchess.com"]
[Source "ChessBase"]
[SourceQuality "1"]
[TimeControl "40/5400+30:1800+30"]

1. d4 Nf6 2. c4 g6 3. Nc3 Bg7 4. e4 d6 5. h3 O-O 6. Bg5 c5 7. d5 e6 8. Bd3 exd5 9. exd5 Nbd7 10. f4 Qa5 11. Qd2 a6 12. Nge2 b5 13. cxb5 Nb6 14. bxa6 Bxa6 15. O-O Nfxd5 16. f5 Nxc3 17. bxc3 Bxd3 18. Qxd3 Be5 19. Bf4 Qa6 20. Qf3 Nc4 21. Bh6 Bg7 22. Bxg7 Kxg7 23. f6+ Kh8 24. Qf4 Ne5 25. Ng3 Rg8 26. Ne4 Qc4 27. Nxd6 Qxf4 28. Rxf4 Rgd8 29. Re1 Nf3+ 30. Rxf3 Rxd6 31. Re7 Kg8 32. Rc7 Rd5 33. c4 Re5 34. Ra3 Rf8 35. Ra6 h6 36. a4 g5 37. a5 Rf5 38. Rb6 Rd8 39. a6 Rd1+ 40. Kh2 1-0

[Event "Summer Prague Open A 2020"]
[Site "Prague"]
[Date "2020.08.08"]
[Round "1.12"]
[White "Laurincova, Kristyna"]
[Black "Kulhanek, Tomas"]
[Result "1-0"]
[ECO "C06"]
[WhiteElo "2008"]
[BlackElo "2339"]
[Annotator "ChessBase"]
[PlyCount "103"]
[EventDate "2020.08.08"]
[EventCountry "CZE"]
[SourceTitle "playchess.com"]
[Source "ChessBase"]
[SourceQuality "1"]
[TimeControl "40/5400+30:1800+30"]

1. e4 {[%emt 0:00:00]} e6 {[%emt 0:00:00]} 2. d4 {[%emt 0:00:00]} d5 {[%emt 0:00:00]} 3. Nd2 {[%emt 0:00:09]} Nf6 {[%emt 0:00:13]} 4. e5 {[%emt 0:00:05]} Nfd7 {[%emt 0:00:06]} 5. Bd3 {[%emt 0:00:04]} c5 {[%emt 0:00:15]} 6. c3 {[%emt 0:00:06]} Nc6 {[%emt 0:00:15]} 7. Ne2 {[%emt 0:00:23]} cxd4 {[%emt 0:01:01]} 8. cxd4 {[%emt 0:00:11]} f6 {[%emt 0:00:20]} 9. exf6 {[%emt 0:01:24]} Qxf6 {[%emt 0:00:29]} 10. Nf3 {[%emt 0:02:17]} h6 {[%emt 0:00:19]} 11. O-O {[%emt 0:03:25]} Bd6 {[%emt 0:00:15]} 12. Be3 {[%emt 0:06:55]} O-O {[%emt 0:01:06]} 13. Rc1 {[%emt 0:05:10]} Rd8 {[%emt 0:01:01]} 14. Ng3 {[%emt 0:04:44]} Nf8 {[%emt 0:00:39]} 15. Re1 {[%emt 0:02:51]} Bd7 {[%emt 0:00:52]} 16. a3 {[%emt 0:13:30]} Be8 {[%emt 0:00:37]} 17. Qd2 {[%emt 0:01:35]} a6 {[%emt 0:01:45]} 18. h3 {[%emt 0:07:18]} Bg6 {[%emt 0:00:50]} 19. Nh2 {[%emt 0:12:34]} Bxd3 {[%emt 0:04:39]} 20. Qxd3 {[%emt 0:00:09]} Rac8 {[%emt 0:03:04]} 21. Qd2 {[%emt 0:05:42]} Kh8 {[%emt 0:13:29]} 22. Rc3 {[%emt 0:06:24]} Rc7 {[%emt 0:11:34]} 23. Nh5 {[%emt 0:12:40]} Qf7 {[%emt 0:03:27]} 24. Bf4 {[%emt 0:01:03]} Bxf4 {[%emt 0:14:53]} 25. Nxf4 {[%emt 0:01:45]} Qf6 {[%emt 0:10:38]} 26. Ng4 {[%emt 0:01:31]} Qf5 {[%emt 0:02:46]} 27. Ne5 {[%emt 0:04:44]} Rdc8 {[%emt 0:00:44]} 28. Rec1 {[%emt 0:06:43]} Kg8 {[%emt 0:09:16]} 29. Qe3 {[%emt 0:00:19]} Qf6 {[%emt 0:04:00]} 30. b4 {[%emt 0:00:46]} Qe7 {[%emt 0:10:07]} 31. Nxc6 {[%emt 0:00:13]} bxc6 {[%emt 0:00:08]} 32. Qe5 {[%emt 0:00:45]} Qf6 {[%emt 0:01:03]} 33. Qe3 {[%emt 0:00:10]} Qf5 {[%emt 0:02:54]} 34. Re1 {[%emt 0:00:42]} a5 {[%emt 0:00:44]} 35. bxa5 {[%emt 0:00:38]} Ra7 {[%emt 0:01:53]} 36. Nd3 {[%emt 0:00:33]} Rxa5 {[%emt 0:00:42]} 37. Nc5 {[%emt 0:00:06]} Rb5 {[%emt 0:00:25]} 38. a4 {[%emt 0:00:30]} Rb2 {[%emt 0:01:20]} 39. Rb3 {[%emt 0:00:51]} Ra2 {[%emt 0:01:06]} 40. Ra3 {[%emt 0:00:32]} Qc2 {[%emt 0:00:33]} 41. Ra1 {[%emt 0:10:44]} Rxa1+ {[%emt 0:07:54]} 42. Rxa1 {[%emt 0:00:01]} Qb2 {[%emt 0:01:30]} 43. Ra3 {[%emt 0:01:03]} e5 {[%emt 0:01:23]} 44. dxe5 {[%emt 0:00:18]} d4 {[%emt 0:00:10]} 45. Qb3+ {[%emt 0:01:29]} Qxb3 {[%emt 0:01:37]} 46. Rxb3 {[%emt 0:00:01]} Ra8 {[%emt 0:03:30]} 47. Rb6 {[%emt 0:06:54]} Ng6 {[%emt 0:05:41]} 48. e6 {[%emt 0:02:01]} Ne7 {[%emt 0:00:16]} 49. Kf1 {[%emt 0:11:19]} Ra5 {[%emt 0:02:33]} 50. Nd7 {[%emt 0:00:06]} g5 {[%emt 0:02:14]} 51. Rb4 {[%emt 0:00:42]} Rd5 {[%emt 0:02:02]} 52. Nf6+ {[%emt 0:00:20]} 1-0

[Event "Summer Prague Open A 2020"]
[Site "Prague"]
[Date "2020.08.08"]
[Round "1.13"]
[White "Simek, Petr"]
[Black "Golbach, Floris"]
[Result "0-1"]
[ECO "A20"]
[WhiteElo "2344"]
[BlackElo "2006"]
[Annotator "ChessBase"]
[PlyCount "50"]
[EventDate "2020.08.08"]
[EventCountry "CZE"]
[SourceTitle "playchess.com"]
[Source "ChessBase"]
[SourceQuality "1"]
[TimeControl "40/5400+30:1800+30"]

1. c4 e5 2. g3 Nc6 3. Bg2 Bc5 4. Nc3 d6 5. e3 a6 6. Nge2 Ba7 7. d4 exd4 8. exd4 Bf5 9. a3 Qd7 10. h3 h5 11. b4 Nge7 12. Be3 Nd8 13. Nf4 h4 14. g4 Bh7 15. O-O c6 16. Nh5 Kf8 17. Qd2 d5 18. Bh6 Ne6 19. Bxg7+ Nxg7 20. Qh6 Bxd4 21. Ne2 Ng8 22. Qg5 Bxa1 23. Rxa1 Nxh5 24. Qxh5 Qe6 25. Nd4 Qf6 0-1

[Event "Summer Prague Open A 2020"]
[Site "Prague"]
[Date "2020.08.08"]
[Round "1.14"]
[White "Ouaki, Mark"]
[Black "Daeschler, Florian"]
[Result "1-0"]
[ECO "C77"]
[WhiteElo "2004"]
[BlackElo "2322"]
[Annotator "ChessBase"]
[PlyCount "69"]
[EventDate "2020.08.08"]
[EventCountry "CZE"]
[SourceTitle "playchess.com"]
[Source "ChessBase"]
[SourceQuality "1"]
[TimeControl "40/5400+30:1800+30"]

1. e4 {[%emt 0:00:00]} e5 {[%emt 0:00:00]} 2. Nf3 {[%emt 0:00:00]} Nc6 {[%emt 0:00:00]} 3. Bb5 {[%emt 0:00:00]} a6 {[%emt 0:00:00]} 4. Ba4 {[%emt 0:00:00]} Nf6 {[%emt 0:00:00]} 5. d3 {[%emt 0:00:12]} d6 {[%emt 0:00:00]} 6. c3 {[%emt 0:01:46]} g6 {[%emt 0:00:07]} 7. O-O {[%emt 0:02:55]} Bg7 {[%emt 0:00:16]} 8. Re1 {[%emt 0:03:53]} O-O {[%emt 0:00:18]} 9. d4 {[%emt 0:10:38]} exd4 {[%emt 0:07:29]} 10. Bxc6 {[%emt 0:05:36]} bxc6 {[%emt 0:00:06]} 11. cxd4 {[%emt 0:00:40]} Re8 {[%emt 0:08:19]} 12. Nc3 {[%emt 0:00:33]} Rb8 {[%emt 0:01:58]} 13. h3 {[%emt 0:06:29]} Bb7 {[%emt 0:08:19]} 14. Qc2 {[%emt 0:04:07]} d5 {[%emt 0:08:23]} 15. e5 {[%emt 0:04:19]} Ne4 {[%emt 0:00:05]} 16. Na4 {[%emt 0:13:21]} f6 {[%emt 0:06:24]} 17. Bf4 {[%emt 0:05:26]} fxe5 {[%emt 0:07:46]} 18. Bxe5 {[%emt 0:01:43]} Rf8 {[%emt 0:00:24]} 19. Bxg7 {[%emt 0:06:16]} Kxg7 {[%emt 0:06:37]} 20. Nc5 {[%emt 0:01:14]} Bc8 {[%emt 0:01:14]} 21. Nxe4 {[%emt 0:03:15]} Bf5 {[%emt 0:02:20]} 22. Nc5 {[%emt 0:02:09]} Bxc2 {[%emt 0:00:06]} 23. Ne6+ {[%emt 0:00:03]} Kg8 {[%emt 0:02:59]} 24. Nxd8 {[%emt 0:00:12]} Rfxd8 {[%emt 0:00:08]} 25. b3 {[%emt 0:00:25]} Re8 {[%emt 0:06:40]} 26. Rac1 {[%emt 0:04:15]} Rxe1+ {[%emt 0:01:39]} 27. Rxe1 {[%emt 0:00:14]} Be4 {[%emt 0:02:22]} 28. Ne5 {[%emt 0:02:30]} c5 {[%emt 0:04:21]} 29. dxc5 {[%emt 0:04:07]} Rb5 {[%emt 0:02:02]} 30. f3 {[%emt 0:03:05]} Bc2 {[%emt 0:01:10]} 31. Rc1 {[%emt 0:00:56]} Rxc5 {[%emt 0:00:37]} 32. Nd3 {[%emt 0:00:23]} Rc3 {[%emt 0:02:04]} 33. Ne1 {[%emt 0:00:58]} d4 {[%emt 0:03:17]} 34. Rxc2 {[%emt 0:00:28]} d3 {[%emt 0:00:02]} 35. Rd2 1-0

[Event "Summer Prague Open A 2020"]
[Site "Prague"]
[Date "2020.08.08"]
[Round "1.15"]
[White "Buchenau, Frank"]
[Black "Ret, Adam Josef"]
[Result "1/2-1/2"]
[ECO "B52"]
[WhiteElo "2278"]
[BlackElo "2002"]
[Annotator "ChessBase"]
[PlyCount "127"]
[EventDate "2020.08.08"]
[EventCountry "CZE"]
[SourceTitle "playchess.com"]
[Source "ChessBase"]
[SourceQuality "1"]
[TimeControl "40/5400+30:1800+30"]

1. e4 {[%emt 0:00:00]} c5 {[%emt 0:00:00]} 2. Nf3 {[%emt 0:00:00]} d6 {[%emt 0:00:00]} 3. Bb5+ {[%emt 0:00:00]} Bd7 {[%emt 0:00:26]} 4. Bxd7+ {[%emt 0:00:02]} Qxd7 {[%emt 0:00:06]} 5. c4 {[%emt 0:00:09]} Nc6 {[%emt 0:03:17]} 6. d4 {[%emt 0:00:28]} cxd4 {[%emt 0:00:12]} 7. Nxd4 {[%emt 0:00:06]} g6 {[%emt 0:00:46]} 8. Nc3 {[%emt 0:00:30]} Bg7 {[%emt 0:02:52]} 9. Be3 {[%emt 0:02:10]} Nf6 {[%emt 0:01:26]} 10. f3 {[%emt 0:00:17]} Rc8 {[%emt 0:02:51]} 11. b3 {[%emt 0:01:28]} O-O {[%emt 0:03:33]} 12. O-O {[%emt 0:04:17]} Rfd8 {[%emt 0:02:40]} 13. Qd2 {[%emt 0:05:39]} e6 {[%emt 0:04:23]} 14. Rad1 {[%emt 0:04:28]} b6 {[%emt 0:18:03]} 15. Nxc6 {[%emt 0:08:08]} Qxc6 {[%emt 0:02:42]} 16. e5 {[%emt 0:13:01]} Ne8 {[%emt 0:01:52]} 17. Nb5 {[%emt 0:07:38]} Rd7 {[%emt 0:01:38]} 18. exd6 {[%emt 0:11:36]} Rcd8 {[%emt 0:06:53]} 19. Qf2 {[%emt 0:12:09]} Rb8 {[%emt 0:11:27]} 20. Bf4 {[%emt 0:04:47]} e5 {[%emt 0:04:43]} 21. Bg5 {[%emt 0:01:04]} f6 {[%emt 0:02:45]} 22. Be3 {[%emt 0:03:29]} a6 {[%emt 0:09:47]} 23. Nc3 {[%emt 0:03:21]} Nxd6 {[%emt 0:01:31]} 24. Qd2 {[%emt 0:02:32]} Rbd8 {[%emt 0:04:25]} 25. Qd5+ {[%emt 0:02:41]} Qxd5 {[%emt 0:00:04]} 26. Rxd5 {[%emt 0:01:42]} Nc8 27. Rfd1 {[%emt 0:00:17]} Rxd5 {[%emt 0:04:58]} 28. Rxd5 {[%emt 0:00:27]} Rxd5 {[%emt 0:01:05]} 29. Nxd5 {[%emt 0:00:08]} b5 {[%emt 0:00:04]} 30. cxb5 {[%emt 0:01:27]} axb5 {[%emt 0:00:08]} 31. Bc5 {[%emt 0:02:09]} Kf7 {[%emt 0:02:47]} 32. Nc7 {[%emt 0:00:31]} Bf8 {[%emt 0:00:23]} 33. Bxf8 {[%emt 0:00:16]} Kxf8 {[%emt 0:00:03]} 34. Nxb5 {[%emt 0:00:08]} Ke7 {[%emt 0:00:06]} 35. Kf2 {[%emt 0:00:50]} Kd7 {[%emt 0:00:05]} 36. Ke3 {[%emt 0:01:06]} Kc6 {[%emt 0:00:11]} 37. Nc3 {[%emt 0:01:18]} f5 {[%emt 0:00:21]} 38. f4 {[%emt 0:01:28]} e4 {[%emt 0:00:34]} 39. Kd4 {[%emt 0:00:32]} Nd6 {[%emt 0:01:30]} 40. a4 {[%emt 0:00:31]} Nb7 {[%emt 0:00:58]} 41. b4 {[%emt 0:30:27]} Nd8 {[%emt 0:30:55]} 42. Kc4 {[%emt 0:01:34]} Ne6 {[%emt 0:00:42]} 43. Nd5 {[%emt 0:01:23]} Nc7 {[%emt 0:03:21]} 44. b5+ {[%emt 0:00:42]} Kb7 {[%emt 0:01:05]} 45. Nf6 {[%emt 0:01:07]} Kb6 {[%emt 0:00:52]} 46. Kb4 {[%emt 0:00:55]} Kb7 {[%emt 0:00:00]} 47. a5 {[%emt 0:00:00]} h6 {[%emt 0:00:00]} 48. h4 {[%emt 0:00:00]} e3 {[%emt 0:00:00]} 49. Kc3 {[%emt 0:00:00]} Nxb5+ {[%emt 0:00:00]} 50. Kd3 {[%emt 0:00:00]} e2 {[%emt 0:00:00]} 51. Kxe2 {[%emt 0:00:00]} Nd4+ {[%emt 0:00:00]} 52. Ke3 {[%emt 0:00:00]} Nc6 {[%emt 0:00:00]} 53. Nd7 {[%emt 0:00:00]} Kc7 {[%emt 0:00:00]} 54. Ne5 {[%emt 0:00:00]} Nxa5 {[%emt 0:00:00]} 55. Nxg6 {[%emt 0:00:00]} Kd6 {[%emt 0:00:00]} 56. Ne5 {[%emt 0:00:00]} Ke6 {[%emt 0:00:00]} 57. g4 {[%emt 0:00:00]} fxg4 {[%emt 0:01:03]} 58. Nxg4 {[%emt 0:00:00]} h5 {[%emt 0:00:04]} 59. Nh2 {[%emt 0:01:34]} Kf5 {[%emt 0:00:33]} 60. Kf3 {[%emt 0:04:16]} Nc6 {[%emt 0:00:57]} 61. Nf1 {[%emt 0:02:02]} Nd4+ {[%emt 0:00:18]} 62. Ke3 {[%emt 0:00:15]} Nc2+ {[%emt 0:00:12]} 63. Kf3 {[%emt 0:01:19]} Nd4+ {[%emt 0:00:06]} 64. Ke3 1/2-1/2

[Event "Summer Prague Open A 2020"]
[Site "Prague"]
[Date "2020.08.08"]
[Round "1.16"]
[White "Novotny, David"]
[Black "Mica, Marek"]
[Result "0-1"]
[ECO "A45"]
[WhiteElo "1945"]
[BlackElo "2306"]
[Annotator "ChessBase"]
[PlyCount "128"]
[EventDate "2020.08.08"]
[EventCountry "CZE"]
[SourceTitle "playchess.com"]
[Source "ChessBase"]
[SourceQuality "1"]
[TimeControl "40/5400+30:1800+30"]

1. d4 {[%emt 0:00:00]} Nf6 {[%emt 0:00:00]} 2. Bf4 {[%emt 0:00:35]} b6 {[%emt 0:00:38]} 3. Nc3 {[%emt 0:02:56]} Bb7 {[%emt 0:00:41]} 4. e3 {[%emt 0:01:42]} d6 {[%emt 0:01:33]} 5. Nf3 {[%emt 0:01:42]} Nbd7 {[%emt 0:00:59]} 6. Bd3 {[%emt 0:08:04]} g6 {[%emt 0:03:39]} 7. h3 {[%emt 0:07:05]} Bg7 {[%emt 0:01:21]} 8. O-O {[%emt 0:03:02]} O-O {[%emt 0:01:21]} 9. e4 {[%emt 0:04:04]} Nh5 {[%emt 0:12:38]} 10. Bh2 {[%emt 0:01:50]} e5 {[%emt 0:01:36]} 11. dxe5 {[%emt 0:03:35]} dxe5 {[%emt 0:01:13]} 12. Bc4 {[%emt 0:04:28]} Qe8 {[%emt 0:12:41]} 13. Qd2 {[%emt 0:22:50]} Nc5 {[%emt 0:09:33]} 14. Qe3 {[%emt 0:02:07]} Rd8 {[%emt 0:03:24]} 15. b4 {[%emt 0:03:51]} Na6 {[%emt 0:04:30]} 16. a3 {[%emt 0:01:01]} Nf4 {[%emt 0:08:54]} 17. Rfd1 {[%emt 0:01:19]} Rxd1+ {[%emt 0:02:28]} 18. Rxd1 {[%emt 0:00:23]} Bh6 {[%emt 0:00:45]} 19. Bxf4 {[%emt 0:02:09]} exf4 {[%emt 0:01:18]} 20. Qd3 {[%emt 0:01:24]} Nb8 {[%emt 0:03:39]} 21. Nd5 {[%emt 0:06:18]} Bg7 {[%emt 0:04:11]} 22. Ng5 {[%emt 0:08:28]} Nc6 {[%emt 0:10:07]} 23. Nf3 {[%emt 0:05:42]} Ne5 {[%emt 0:01:30]} 24. Nxe5 {[%emt 0:00:26]} Qxe5 {[%emt 0:00:10]} 25. Qf3 {[%emt 0:03:40]} g5 {[%emt 0:00:28]} 26. Rd3 {[%emt 0:01:40]} b5 {[%emt 0:03:37]} 27. Bb3 {[%emt 0:00:29]} a5 {[%emt 0:01:03]} 28. Nc3 {[%emt 0:01:34]} axb4 {[%emt 0:00:18]} 29. axb4 {[%emt 0:00:12]} c6 {[%emt 0:00:28]} 30. Qd1 {[%emt 0:00:55]} Bc8 {[%emt 0:00:50]} 31. f3 {[%emt 0:00:26]} Qe7 {[%emt 0:03:32]} 32. Na2 {[%emt 0:00:08]} Be6 {[%emt 0:00:32]} 33. Bxe6 {[%emt 0:01:05]} Qxe6 {[%emt 0:00:29]} 34. Nc1 {[%emt 0:00:19]} Qc4 {[%emt 0:00:39]} 35. Rd6 {[%emt 0:01:25]} Be5 {[%emt 0:01:16]} 36. Rd7 {[%emt 0:00:27]} Qxb4 {[%emt 0:00:34]} 37. Nd3 {[%emt 0:00:17]} Bd4+ {[%emt 0:00:23]} 38. Kh1 {[%emt 0:00:49]} Qc4 {[%emt 0:03:07]} 39. Nxf4 {[%emt 0:00:17]} Be5 {[%emt 0:00:05]} 40. Nd3 {[%emt 0:00:44]} Bg7 {[%emt 0:00:35]} 41. Nf2 {[%emt 0:06:55]} c5 {[%emt 0:01:56]} 42. Rd8 {[%emt 0:04:06]} Bd4 {[%emt 0:01:17]} 43. Rxf8+ {[%emt 0:00:22]} Kxf8 {[%emt 0:00:06]} 44. Ng4 {[%emt 0:05:55]} Qc3 {[%emt 0:02:02]} 45. Nh6 {[%emt 0:03:07]} Ke7 {[%emt 0:09:28]} 46. Nf5+ {[%emt 0:00:32]} Kd7 {[%emt 0:00:59]} 47. Nxd4 {[%emt 0:01:47]} Qxd4 {[%emt 0:00:40]} 48. Qb1 {[%emt 0:06:02]} Kc6 {[%emt 0:05:26]} 49. Qa2 {[%emt 0:00:42]} Qd1+ {[%emt 0:00:53]} 50. Kh2 {[%emt 0:00:08]} Qd6+ {[%emt 0:01:02]} 51. Kg1 {[%emt 0:00:42]} c4 {[%emt 0:02:31]} 52. Qa8+ {[%emt 0:04:48]} Kb6 {[%emt 0:01:06]} 53. c3 {[%emt 0:00:36]} b4 {[%emt 0:02:51]} 54. cxb4 {[%emt 0:00:31]} c3 {[%emt 0:04:35]} 55. Qa5+ {[%emt 0:01:08]} Kb7 {[%emt 0:00:13]} 56. Qa4 {[%emt 0:00:39]} Qd4+ {[%emt 0:01:53]} 57. Kh2 {[%emt 0:00:29]} Qc4 {[%emt 0:01:47]} 58. e5 {[%emt 0:00:31]} c2 {[%emt 0:01:07]} 59. Qd7+ {[%emt 0:00:17]} Kb6 {[%emt 0:00:49]} 60. Qd8+ {[%emt 0:00:34]} Qc7 {[%emt 0:00:28]} 61. Qd4+ {[%emt 0:00:20]} Kb7 {[%emt 0:00:53]} 62. Qd5+ {[%emt 0:00:36]} Kc8 {[%emt 0:00:21]} 63. Qa8+ {[%emt 0:00:39]} Kd7 {[%emt 0:00:06]} 64. Qd5+ {[%emt 0:00:34]} Ke7 {[%emt 0:00:21]} 0-1